bitfinex-derivatives/quotes_ETHF0:USTF0_20250816
["timestamp","ask_amount","ask_price","bid_price","bid_amount"]
[1755352299116,3.2078,4396.3,4396.2,0.9067]
[1755352300013,5.197,4396.3,4396.2,0.9067]
[1755352300216,2.3381,4396.3,4396.2,0.9067]
[1755352300520,2.3381,4396.3,4396.2,22.6297]
[1755352300821,1.9892,4396.3,4396.2,0.9067]
[1755352301124,1.3179,4396.3,4396.2,22.6287]
[1755352301314,0.7873,4396.7,4396.2,22.6287]
[1755352301511,1.0017,4396.6,4396.5,0.4421]
[1755352301721,0.599,4396.6,4396.5,0.9067]
[1755352301914,0.599,4396.8,4396.5,0.4421]
[1755352302118,1.9892,4396.8,4396.7,0.5758]
[1755352302624,3.2078,4397.0,4396.9,0.4421]
[1755352302823,5.197,4397.0,4396.9,22.6277]
[1755352303519,4.7586,4397.0,4396.9,22.6277]
[1755352303717,3.2078,4397.0,4396.9,22.6247]
[1755352304122,0.1,4397.2,4396.9,22.1601]
[1755352304422,0.1,4397.2,4397.1,4.1145]
[1755352305012,3.2078,4397.7,4397.2,0.45453]
[1755352305218,3.2078,4397.7,4397.6,0.2821]
[1755352305420,3.2078,4397.7,4397.6,22.3637]
[1755352305618,1.0017,4398.2,4397.7,0.3646]
[1755352305819,1.5508,4398.2,4398.1,0.6467]
[1755352306021,1.0374,4398.1,4397.6,3.5724]
[1755352306322,1.5508,4397.7,4397.6,3.8545]
[1755352306820,0.6356,4397.4,4397.3,0.559]
[1755352307013,2.3381,4397.4,4397.3,22.271]
[1755352307615,0.9518,4396.9,4396.8,32.76]
[1755352307932,0.9518,4396.9,4396.8,54.8366]
[1755352307933,1.3179,4396.9,4396.8,54.8366]
[1755352308120,0.599,4396.9,4396.8,54.8366]
[1755352308320,1.1573,4397.2,4397.1,0.2821]
[1755352308521,1.9064,4397.5,4397.4,0.2475]
[1755352308719,1.9064,4397.5,4397.4,22.3075]
[1755352309127,0.5569,4397.5,4397.4,22.3075]
[1755352309425,0.5569,4397.7,4397.6,0.5789]
[1755352309626,0.5569,4397.7,4397.6,0.5965]
[1755352309821,1.4476,4397.7,4397.6,0.5965]
[1755352310023,0.6647,4397.0,4396.9,0.5965]
[1755352310219,1.2216,4397.0,4396.9,22.3045]
[1755352310421,0.8345,4397.3,4396.9,22.3045]
[1755352310622,0.8459,4397.2,4397.1,0.2475]
[1755352310817,2.231,4397.2,4397.1,0.5965]
[1755352311826,0.515,4396.9,4396.8,32.76]
[1755352312033,2.231,4396.9,4396.8,54.465]
[1755352312222,2.231,4396.9,4396.8,32.76]
[1755352312423,2.231,4396.9,4396.8,54.465]
[1755352313519,2.231,4396.9,4396.8,32.76]
[1755352313729,0.8907,4396.9,4396.3,0.349]
[1755352313933,2.231,4396.4,4396.3,0.5507]
[1755352314122,2.231,4396.4,4396.3,22.2547]
[1755352315531,2.231,4396.4,4396.3,0.5507]
[1755352315726,2.231,4396.4,4396.3,22.2527]
[1755352317929,2.231,4396.4,4396.3,22.2985]
[1755352318125,0.5569,4396.4,4396.3,22.2985]
[1755352318327,1.4476,4396.9,4396.8,0.2193]
[1755352318529,2.231,4396.9,4396.8,21.9213]
[1755352320427,2.231,4396.9,4396.8,22.2527]
[1755352320626,0.6647,4396.9,4396.8,21.9495]
[1755352320829,1.4476,4396.3,4396.2,0.2651]
[1755352321030,1.9064,4396.3,4396.2,21.9641]
[1755352321328,2.231,4396.3,4396.2,0.5507]
[1755352321529,2.231,4396.3,4396.2,22.2497]
[1755352321731,2.231,4396.3,4396.2,22.2955]
[1755352322029,1.9064,4396.3,4396.2,22.2955]
[1755352322228,0.5569,4396.6,4396.5,0.2651]
[1755352322426,0.4588,4396.8,4396.5,0.2475]
[1755352322623,0.8345,4397.3,4396.8,0.0176]
[1755352322927,0.9738,4397.3,4397.2,0.5965]
[1755352323126,0.00462424,4397.4,4397.3,0.5965]
[1755352323528,0.56152424,4397.4,4397.3,0.5965]
[1755352323833,1.91102424,4397.4,4397.3,0.5965]
[1755352324232,0.00462424,4397.4,4397.3,0.5965]
[1755352328328,0.00462424,4397.4,4397.3,22.2865]
[1755352328729,0.93722424,4397.4,4397.3,22.2865]
[1755352328930,0.00462424,4397.4,4397.3,22.2865]
[1755352330031,2.23562424,4397.4,4397.3,22.2377]
[1755352330230,2.23562424,4397.4,4397.3,0.2193]
[1755352330438,2.23562424,4397.4,4397.3,21.9053]
[1755352330937,2.23562424,4397.4,4397.3,22.2543]
[1755352331338,2.23562424,4397.4,4397.3,22.2367]
[1755352331733,1.21992424,4397.4,4397.0,3.5392]
[1755352331939,2.231,4397.3,4397.2,0.5507]
[1755352332139,2.231,4397.3,4397.2,0.5683]
[1755352332839,2.231,4397.3,4397.2,0.2193]
[1755352333245,2.231,4397.3,4397.0,3.2078]
[1755352333441,2.231,4396.5,4396.4,3.2078]
[1755352333639,2.231,4396.5,4396.4,24.8908]
[1755352334744,2.231,4396.5,4396.4,3.2078]
[1755352334948,1.0157,4397.2,4396.4,24.8898]
[1755352335144,1.9064,4396.5,4396.4,25.4863]
[1755352335338,1.9064,4396.5,4396.4,25.4853]
[1755352335939,3.2078,4397.3,4397.2,0.5965]
[1755352335940,3.8725,4397.3,4397.2,0.5965]
[1755352336143,0.00462424,4397.4,4397.2,0.5965]
[1755352336144,0.00462424,4397.4,4397.2,22.2317]
[1755352336433,1.30932424,4397.4,4397.3,0.5965]
[1755352336636,1.91102424,4397.4,4397.3,0.5965]
[1755352336836,0.00462424,4397.4,4397.3,0.5965]
[1755352338037,0.9326,4398.3,4398.2,0.3652]
[1755352338234,0.9326,4398.3,4398.2,22.2635]
[1755352338235,0.9738,4398.3,4398.2,22.2635]
[1755352338439,3.2078,4398.4,4398.2,22.2635]
[1755352338645,3.4896,4398.4,4398.3,0.5508]
[1755352338846,5.4083,4398.4,4398.3,0.5508]
[1755352339142,4.4266,4398.4,4398.3,0.5508]
[1755352339742,0.4429,4398.7,4398.3,0.5508]
[1755352340045,0.5861,4398.6,4398.5,0.5508]
[1755352340248,0.5861,4398.6,4398.5,0.2174]
[1755352340249,2.2005,4398.6,4398.5,0.2174]
[1755352340939,2.2005,4398.6,4398.5,0.5508]
[1755352341147,3.4896,4398.9,4398.8,0.5508]
[1755352341444,3.4896,4398.9,4398.8,22.2268]
[1755352341445,0.8679,4398.9,4398.8,22.2268]
[1755352341950,1.8762,4398.9,4398.8,22.2268]
[1755352342153,0.8472,4398.9,4398.0,3.2078]
[1755352342444,0.8472,4398.9,4398.1,22.0064]
[1755352342643,0.8472,4398.9,4398.1,0.3334]
[1755352342845,0.4429,4398.3,4398.2,21.672]
[1755352343051,1.3533,4398.3,4398.2,21.672]
[1755352343846,1.029,4398.3,4398.2,22.0054]
[1755352344043,3.2078,4399.0,4398.2,22.0054]
[1755352344044,0.7672,4398.7,4398.2,22.0054]
[1755352344348,3.2078,4399.0,4398.4,0.3334]
[1755352344551,0.3243,4398.5,4398.4,0.3334]
[1755352344749,0.3243,4398.9,4398.0,3.2078]
[1755352344951,1.029,4398.8,4398.2,0.3334]
[1755352345147,0.4429,4398.8,4398.2,0.3334]
[1755352345347,1.3533,4398.8,4398.2,0.3334]
[1755352345548,0.7672,4398.6,4398.2,0.3334]
[1755352345853,0.4429,4398.7,4398.2,0.3334]
[1755352346047,3.2078,4399.0,4398.1,21.669]
[1755352346253,1.029,4398.5,4398.3,0.3334]
[1755352346455,2.2005,4398.4,4398.3,0.5508]
[1755352346656,1.3533,4398.9,4398.3,0.5508]
[1755352346844,0.5861,4398.8,4398.3,0.5508]
[1755352347249,1.4333,4398.9,4398.8,0.2174]
[1755352347447,2.2005,4398.9,4398.8,21.8834]
[1755352347648,2.2005,4398.9,4398.8,21.666]
[1755352349356,2.2005,4398.9,4398.8,22.2168]
[1755352349750,2.2005,4398.9,4398.8,21.8834]
[1755352352054,2.2005,4398.9,4398.8,22.2168]
[1755352352258,1.8762,4398.9,4398.8,22.2168]
[1755352352755,2.2005,4398.9,4398.8,22.2168]
[1755352355553,0.5861,4399.3,4398.8,22.2168]
[1755352355759,1.8762,4399.2,4399.1,0.5508]
[1755352355955,2.2005,4399.2,4399.1,22.2058]
[1755352356152,2.2005,4399.2,4399.1,0.5508]
[1755352356356,2.2005,4399.2,4399.1,22.2058]
[1755352356758,1.2188,4399.2,4399.1,22.2058]
[1755352357355,1.1249,4399.4,4399.3,0.3334]
[1755352357654,1.4333,4398.7,4398.6,0.5508]
[1755352357849,1.4333,4398.7,4398.6,22.2038]
[1755352358053,1.2188,4398.7,4398.6,22.2038]
[1755352358459,0.5861,4399.3,4399.2,0.5508]
[1755352358659,0.5861,4400.3,4399.2,57.8142]
[1755352358864,2.2005,4400.3,4400.2,0.5508]
[1755352359063,2.2005,4400.3,4400.2,22.2018]
[1755352360058,3.2078,4400.5,4400.2,22.2018]
[1755352360562,2.2005,4400.4,4400.3,22.1988]
[1755352361364,0.3243,4401.0,4400.3,22.1988]
[1755352361660,2.2005,4400.9,4400.8,0.2174]
[1755352361862,2.2005,4400.9,4400.8,21.8644]
[1755352362963,2.2005,4400.9,4400.8,21.8604]
[1755352363366,0.5861,4400.9,4400.8,21.8604]
[1755352363566,2.2005,4400.9,4400.8,21.8604]
[1755352365066,2.2005,4400.9,4400.8,22.1938]
[1755352365864,2.2005,4400.9,4400.8,22.1908]
[1755352366170,3.2078,4401.2,4400.2,3.2078]
[1755352366171,0.4429,4400.8,4400.2,3.2078]
[1755352366469,1.8762,4400.3,4400.2,3.7586]
[1755352366664,1.8762,4400.3,4400.2,25.3966]
[1755352366966,2.2005,4400.3,4400.2,25.3966]
[1755352367664,2.2005,4400.3,4400.2,25.3956]
[1755352367869,2.2005,4400.3,4400.2,25.3946]
[1755352368766,2.2005,4400.3,4400.2,3.7586]
[1755352368966,2.2005,4400.3,4400.2,22.1858]
[1755352369566,1.8762,4400.3,4400.2,22.1858]
[1755352369771,2.1934,4400.3,4400.2,22.1858]
[1755352370373,1.8762,4400.3,4400.2,22.1858]
[1755352370674,2.1934,4400.3,4400.2,22.1858]
[1755352370880,1.8762,4400.3,4400.2,22.1858]
[1755352371976,1.4333,4400.3,4400.2,22.1858]
[1755352372679,2.2093,4400.3,4399.6,0.14088066]
[1755352372981,2.216,4400.2,4400.1,0.5426]
[1755352373271,2.216,4400.2,4400.1,21.8515]
[1755352373676,2.216,4400.2,4400.1,22.1716]
[1755352374278,1.7572,4400.2,4399.6,21.1201]
[1755352374580,2.216,4399.7,4399.6,0.5426]
[1755352374779,2.216,4399.7,4399.6,22.1706]
[1755352374981,1.8988,4399.7,4399.6,22.1706]
[1755352375184,1.2177,4399.7,4399.6,22.1706]
[1755352375377,1.3447,4400.0,4399.9,0.2225]
[1755352375577,1.3447,4400.0,4399.9,0.5426]
[1755352375777,1.6619,4400.0,4399.9,0.5426]
[1755352376086,2.216,4400.0,4399.9,0.5426]
[1755352378182,0.8859,4400.0,4399.5,3.2078]
[1755352378380,0.8713,4399.5,4399.2,32.737]
[1755352378676,2.216,4399.3,4399.2,32.737]
[1755352378983,0.9712,4399.3,4399.2,55.2467]
[1755352379682,0.5124,4399.3,4399.2,55.2467]
[1755352380181,0.9983,4399.6,4399.5,0.5765]
[1755352380376,1.2884,4399.6,4399.5,1.4632]
[1755352381288,3.2078,4400.2,4399.2,54.36]
[1755352381289,2.216,4399.4,4399.3,0.5426]
[1755352381484,2.216,4399.4,4399.3,0.5765]
[1755352381788,0.5124,4399.5,4399.4,1.1431]
[1755352381989,0.9712,4399.5,4399.4,1.4632]
[1755352382484,1.2884,4399.5,4399.4,1.4632]
[1755352383380,0.9712,4399.5,4399.4,1.4632]
[1755352384382,2.216,4399.5,4399.4,0.2225]
[1755352384587,2.216,4399.5,4399.4,1.4632]
[1755352384984,1.6619,4399.5,4399.4,1.4632]
[1755352385489,0.2901,4399.5,4399.4,1.4632]
[1755352385689,2.216,4399.5,4399.4,1.4632]
[1755352387089,1.6619,4399.5,4399.4,1.4632]
[1755352387290,2.216,4399.5,4399.4,1.4632]
[1755352388490,1.2884,4399.5,4399.4,1.4632]
[1755352389788,1.6619,4399.5,4399.4,1.4632]
[1755352389988,2.216,4399.5,4399.4,1.4632]
[1755352391884,1.7572,4399.5,4399.2,32.737]
[1755352392094,1.7572,4399.5,4399.4,21.608]
[1755352392289,1.7572,4399.5,4399.4,22.1746]
[1755352392596,2.216,4399.5,4399.4,1.1431]
[1755352392794,2.216,4399.5,4399.4,21.606]
[1755352393397,2.216,4399.5,4399.4,22.7491]
[1755352393696,2.216,4399.5,4399.4,23.0692]
[1755352393900,2.216,4399.3,4399.2,32.737]
[1755352394094,2.216,4399.3,4399.2,54.34]
[1755352394296,2.216,4399.3,4399.2,32.2779]
[1755352394499,2.216,4399.3,4399.2,53.8809]
[1755352396995,5.216,4399.3,4398.4,5.23980591]
[1755352397295,2.216,4398.5,4398.4,5.3706]
[1755352397495,2.216,4398.5,4398.4,26.9706]
[1755352397898,2.216,4398.5,4398.4,23.1962]
[1755352398099,2.216,4398.5,4398.4,21.6]
[1755352398800,2.216,4398.5,4398.4,21.8119]
[1755352399003,2.216,4398.5,4398.4,22.7007]
[1755352399403,2.216,4398.5,4398.4,22.9943]
[1755352399703,2.216,4398.5,4398.4,23.3197]
[1755352400305,2.216,4398.5,4398.4,22.9943]
[1755352400504,1.738,4398.0,4397.9,33.0544]
[1755352400705,2.1566,4398.0,4397.9,55.6284]
[1755352401700,1.6028,4398.0,4397.9,32.729]
[1755352401905,2.1566,4398.0,4397.9,54.324]
[1755352402106,4.1842,4398.0,4397.2,0.3254]
[1755352402300,1.20784478,4399.9,4396.8,4.1565]
[1755352402301,1.6028,4396.9,4396.8,4.1565]
[1755352402603,1.6028,4396.6,4396.5,0.5348]
[1755352402808,1.3974,4396.6,4396.5,23.7579]
[1755352403201,2.1566,4396.6,4396.5,22.9893]
[1755352403403,2.1566,4396.6,4396.5,22.6353]
[1755352403600,2.1566,4396.6,4396.5,23.7579]
[1755352406408,3.2078,4397.2,4396.1,0.10236229]
[1755352406605,0.495,4396.7,4396.6,0.8595]
[1755352406811,1.6028,4396.7,4396.6,23.7549]
[1755352407309,2.1566,4396.7,4396.6,23.7549]
[1755352407806,3.2078,4397.1,4396.6,22.4515]
[1755352408112,3.2078,4397.1,4396.9,2.1629]
[1755352408314,5.3644,4397.1,4397.0,23.7569]
[1755352409803,2.1566,4397.1,4397.0,23.7569]
[1755352410509,0.495,4397.1,4397.0,23.7569]
[1755352410707,2.0158,4397.7,4397.0,22.4535]
[1755352410907,2.0158,4397.7,4397.1,1.3034]
[1755352411109,2.0158,4397.7,4397.2,21.59]
[1755352411316,0.6225,4397.4,4397.3,23.7519]
[1755352412508,0.6225,4397.4,4397.3,21.9144]
[1755352412710,0.9331,4397.4,4397.3,22.4199]
[1755352412913,0.9331,4397.4,4397.3,23.3087]
[1755352413114,0.9331,4397.4,4397.3,23.7519]
[1755352413308,0.2097,4397.4,4397.3,23.7519]
[1755352414409,2.6383,4397.7,4397.6,0.5659]
[1755352414611,2.9489,4397.7,4397.6,23.7479]
[1755352415208,2.9489,4397.7,4397.6,23.3047]
[1755352415404,3.0895,4397.7,4397.6,21.9104]
[1755352417310,2.9489,4397.7,4397.6,22.7699]
[1755352417515,2.9489,4397.7,4397.6,23.7479]
[1755352419415,2.0158,4397.7,4397.6,23.7479]
[1755352419612,0.0797,4398.4,4398.3,0.8595]
[1755352419613,0.495,4398.4,4398.3,0.8595]
[1755352419817,3.2078,4398.5,4398.3,22.4355]
[1755352420019,0.2309,4398.8,4398.3,22.4355]
[1755352420212,0.5162,4398.9,4398.4,1.3034]
[1755352420417,0.6225,4398.9,4398.8,0.8595]
[1755352420614,0.7022,4398.9,4398.8,23.7379]
[1755352421019,0.9331,4398.9,4398.8,23.7379]
[1755352423222,0.8534,4398.9,4398.8,23.7379]
[1755352423423,3.2078,4399.0,4398.8,22.4345]
[1755352423619,3.2078,4399.5,4399.4,0.354]
[1755352423929,4.0612,4399.5,4399.4,23.7319]
[1755352424131,4.1409,4399.5,4399.4,23.7319]
[1755352424820,4.0612,4399.5,4399.4,23.7319]
[1755352425528,4.1409,4399.5,4399.4,23.7319]
[1755352425826,3.8303,4399.5,4398.6,0.3254]
[1755352426025,0.3106,4399.4,4398.8,0.3254]
[1755352426328,0.9331,4399.4,4399.3,2.1629]
[1755352426624,1.0737,4399.4,4399.3,21.563]
[1755352426826,0.9331,4399.0,4398.9,0.3254]
[1755352427032,4.1409,4399.0,4398.9,21.8874]
[1755352427233,4.1409,4399.0,4398.9,23.2817]
[1755352427732,4.1409,4399.0,4398.9,23.7249]
[1755352428436,4.0612,4399.0,4398.9,23.7249]
[1755352429232,3.934,4399.0,4398.9,23.7249]
[1755352429736,3.2078,4399.0,4398.9,23.7249]
[1755352430635,3.2078,4399.7,4398.9,23.7249]
[1755352430829,0.9572,4399.6,4399.5,2.1515]
[1755352431141,0.9572,4399.6,4399.5,23.2932]
[1755352431532,1.0979,4399.6,4399.5,1.2132]
[1755352431834,3.2078,4399.7,4398.0,3.36210062]
[1755352431835,0.08,4399.3,4398.1,1.2751]
[1755352432030,3.2078,4399.2,4398.2,21.551]
[1755352432234,0.9572,4399.1,4399.0,1.7392]
[1755352432538,0.9572,4399.1,4399.0,21.8868]
[1755352433041,0.9572,4399.1,4399.0,22.6205]
[1755352433436,0.9572,4399.1,4399.0,22.9869]
[1755352433637,1.0979,4399.1,4399.0,0.3368]
[1755352433937,1.0979,4399.1,4399.0,21.8868]
[1755352434439,0.9572,4399.1,4399.0,23.2892]
[1755352434640,0.9572,4399.1,4399.0,23.7015]
[1755352437340,3.4332,4399.1,4398.2,21.8818]
[1755352437544,3.8538,4398.5,4398.4,0.8764]
[1755352437741,3.8538,4398.5,4398.4,2.1515]
[1755352437941,3.9338,4398.5,4398.4,2.1515]
[1755352438145,4.165,4398.5,4398.4,2.1515]
[1755352438952,0.646,4398.3,4398.2,21.541]
[1755352439244,1.0979,4398.3,4398.2,21.541]
[1755352439446,1.0979,4398.3,4398.2,21.8778]
[1755352440842,0.3112,4398.2,4397.5,0.3368]
[1755352441040,4.3057,4398.0,4397.9,0.3368]
[1755352442545,4.165,4398.0,4397.9,1.7392]
[1755352442946,4.165,4398.0,4397.9,2.1515]
[1755352443452,3.2078,4398.0,4397.9,1.7392]
[1755352443748,3.519,4398.8,4398.0,0.8628]
[1755352443950,4.165,4398.8,4398.7,0.8764]
[1755352444148,4.165,4398.8,4398.7,2.1515]
[1755352448653,4.085,4398.8,4398.7,2.1515]
[1755352449051,4.165,4398.8,4398.7,2.1515]
[1755352449245,4.26690005,4398.8,4398.7,1.7392]
[1755352450057,4.26690005,4398.8,4398.7,2.1515]
[1755352452255,4.165,4398.8,4398.7,2.1515]
[1755352456257,3.2078,4398.8,4398.7,2.1515]
[1755352457759,4.165,4398.8,4398.7,23.6615]
[1755352457960,0.646,4398.6,4398.5,0.3368]
[1755352458264,1.05917236,4398.6,4398.5,21.8458]
[1755352458469,1.05917236,4398.6,4398.5,23.2482]
[1755352458962,1.05917236,4398.6,4398.5,23.6647]
[1755352460966,0.85117236,4398.6,4398.5,23.6647]
[1755352461159,3.2078,4398.8,4398.5,22.3854]
[1755352461360,0.10197255,4398.7,4398.6,2.1443]
[1755352461860,3.4232,4398.8,4398.6,2.1443]
[1755352462061,3.4232,4398.8,4398.7,1.2973]
[1755352462259,3.2078,4398.8,4398.7,2.1443]
[1755352463568,4.0243,4398.8,4398.7,2.1443]
[1755352463773,4.0846,4398.8,4398.7,2.1443]
[1755352464067,4.18662417,4398.8,4398.7,22.3798]
[1755352464268,4.18662417,4398.8,4398.7,22.5874]
[1755352464462,4.18662417,4398.8,4398.7,23.2268]
[1755352464766,4.18662417,4398.8,4398.7,23.6433]
[1755352465066,4.02672417,4398.8,4398.7,23.6433]
[1755352465466,4.11702417,4398.8,4398.7,23.6433]
[1755352465767,4.17342417,4398.8,4398.7,23.6433]
[1755352466871,4.17342417,4398.8,4398.7,23.2268]
[1755352467070,4.29992417,4398.8,4398.7,23.2268]
[1755352467871,4.17342417,4398.8,4398.7,23.2228]
[1755352468570,4.17342417,4398.8,4398.7,23.6393]
[1755352469869,4.11702417,4398.8,4398.7,23.6393]
[1755352470175,4.17342417,4398.8,4398.7,23.6323]
[1755352471870,4.17342417,4398.8,4398.7,23.68524502]
[1755352474168,4.02672417,4398.8,4398.7,23.68524502]
[1755352474374,3.30982417,4398.8,4398.7,23.68524502]
[1755352475775,3.72452417,4398.8,4398.7,23.68524502]
[1755352476168,4.11393324,4398.8,4398.7,22.80444502]
[1755352476368,4.17033324,4398.8,4398.7,23.68524502]
[1755352476774,4.11393324,4398.8,4398.7,23.68524502]
[1755352476969,4.02363324,4398.8,4398.7,23.68524502]
[1755352477475,4.17033324,4398.8,4398.7,23.68524502]
[1755352477970,4.29683324,4398.8,4398.7,21.83624502]
[1755352478369,4.29683324,4398.8,4398.7,22.40774502]
[1755352478680,4.17033324,4398.8,4398.7,22.61534502]
[1755352478972,4.17033324,4398.8,4398.7,23.25474502]
[1755352479171,4.17033324,4398.8,4398.7,23.67124502]
[1755352482677,4.11393324,4398.8,4398.7,23.67124502]
[1755352483081,3.72523324,4398.8,4398.7,23.67124502]
[1755352484973,1.96303324,4398.8,4398.7,23.67124502]
[1755352485175,3.2078,4399.3,4399.2,0.2076]
[1755352485477,3.31050857,4399.3,4399.2,23.6053]
[1755352485674,0.10270857,4399.3,4399.2,23.6053]
[1755352485881,0.9622,4399.8,4399.3,1.2973]
[1755352486075,0.9622,4399.8,4399.7,2.1443]
[1755352486076,1.4774,4399.8,4399.7,2.1443]
[1755352486270,1.03779541,4399.8,4399.7,23.6043]
[1755352486878,1.03779541,4399.8,4399.7,23.65724502]
[1755352488077,0.10269541,4399.8,4399.7,23.65724502]
[1755352488276,2.26569541,4399.8,4399.7,0.05294502]
[1755352488878,2.26569541,4399.8,4399.7,0.59474502]
[1755352488879,2.24219541,4399.8,4399.7,0.59474502]
[1755352489072,2.24219541,4399.8,4399.7,2.19394502]
[1755352489274,2.24219541,4399.8,4399.7,23.64694502]
[1755352489479,2.24219541,4399.8,4399.7,22.93424502]
[1755352489678,2.24219541,4399.8,4399.7,22.40814502]
[1755352489885,2.24219541,4399.8,4399.7,22.08864502]
[1755352490078,2.24219541,4399.8,4399.7,21.50594502]
[1755352491481,2.24219541,4399.8,4399.7,0.05294502]
[1755352491982,2.24219541,4399.8,4399.7,0.37244502]
[1755352492184,2.24219541,4399.8,4399.7,2.19394502]
[1755352492678,0.10269541,4399.8,4399.7,2.19394502]
[1755352493180,3.2078,4399.9,4399.8,1.2821]
[1755352493381,3.2078,4399.9,4399.8,23.587]
[1755352493972,3.2078,4399.9,4399.8,23.63994502]
[1755352495779,5.009,4399.9,4399.8,2.19394502]
[1755352495986,5.44621124,4399.9,4399.8,23.19944502]
[1755352496185,5.44621124,4399.9,4399.8,21.49494502]
[1755352496484,5.44621124,4399.9,4399.8,22.56284502]
[1755352496784,5.44621124,4399.9,4399.8,23.19944502]
[1755352497082,3.32451124,4399.9,4399.8,23.63594502]
[1755352497385,3.2078,4399.9,4399.8,23.63594502]
[1755352497784,3.32457822,4399.9,4399.8,23.63594502]
[1755352498483,3.32841476,4399.9,4399.8,23.63594502]
[1755352499080,3.60811476,4399.9,4399.8,23.63594502]
[1755352499280,5.45011476,4399.9,4399.8,23.63594502]
[1755352499479,5.45011476,4399.9,4399.8,2.19394502]
[1755352499686,5.45011476,4399.9,4399.8,23.62694502]
[1755352500384,5.45011476,4399.9,4399.8,22.38814502]
[1755352500580,5.45011476,4399.9,4399.8,22.06864502]
[1755352500886,5.45014482,4399.9,4399.8,21.70824502]
[1755352501481,5.45014482,4399.9,4399.8,22.02774502]
[1755352501677,5.45014482,4399.9,4399.8,21.48594502]
[1755352501878,5.45014482,4399.9,4399.8,0.05294502]
[1755352503087,8.45014482,4399.9,4399.8,0.05294502]
[1755352504584,0.5038,4398.8,4398.7,22.2849]
[1755352504783,2.1217,4398.8,4398.7,23.567]
[1755352504982,1.8012,4398.8,4398.7,23.567]
[1755352505884,0.9319,4398.8,4398.7,2.141]
[1755352506085,1.8012,4398.8,4398.7,23.563]
[1755352506281,1.92181726,4398.8,4398.7,23.563]
[1755352506482,1.92181982,4398.8,4398.7,23.563]
[1755352507191,1.05251982,4398.8,4398.7,23.563]
[1755352507791,1.41031982,4398.8,4398.7,23.563]
[1755352507990,1.92181982,4398.8,4398.7,23.563]
[1755352508893,2.24231982,4398.8,4398.7,23.56]
[1755352509094,2.24236928,4398.8,4398.7,23.56]
[1755352509593,2.24236928,4398.8,4398.7,23.1235]
[1755352509793,1.1821,4398.5,4398.4,1.4283]
[1755352509989,5.45016928,4398.5,4398.4,2.141]
[1755352514098,5.12966928,4398.5,4398.4,2.141]
[1755352517001,5.45016928,4398.5,4398.4,2.141]
[1755352518704,1.2363,4398.4,4397.6,1.2704]
[1755352518904,4.9519,4398.0,4397.9,1.756]
[1755352519101,4.9519,4398.0,4397.9,2.0778]
[1755352519702,4.4361,4398.0,4397.9,2.0778]
[1755352519904,4.0875,4398.0,4397.9,2.0778]
[1755352521514,4.9519,4398.0,4397.9,2.0778]
[1755352524414,5.265,4398.0,4397.9,2.0778]
[1755352525510,4.0287,4398.0,4397.5,32.738]
[1755352525710,1.7441,4397.7,4397.6,23.4718]
[1755352526709,1.7441,4397.7,4396.8,3.2078]
[1755352526710,0.8797,4397.7,4396.8,3.2078]
[1755352526910,2.0572,4397.6,4397.5,0.2109]
[1755352527114,0.8209,4397.3,4397.2,0.8074]
[1755352527314,0.5158,4397.8,4397.2,22.1984]
[1755352527510,0.12072479,4397.7,4397.2,22.1984]
[1755352527714,0.6739,4397.6,4397.5,0.8074]
[1755352527912,0.8797,4397.6,4397.5,23.4678]
[1755352529414,2.0572,4397.6,4397.5,23.4678]
[1755352532216,2.17799775,4397.6,4397.5,23.4678]
[1755352535017,2.17806641,4397.6,4397.5,23.4678]
[1755352536418,2.17811829,4397.6,4397.5,23.4678]
[1755352538724,0.12091829,4397.6,4397.5,23.4678]
[1755352540926,0.12100034,4397.9,4397.5,23.4678]
[1755352541126,0.12100034,4397.8,4397.7,0.2109]
[1755352541331,0.12100034,4397.8,4397.7,23.4468]
[1755352541922,0.52840034,4397.8,4397.7,23.4468]
[1755352542121,0.79490034,4397.8,4397.7,23.4468]
[1755352542323,1.86510034,4397.8,4397.7,23.4468]
[1755352542524,2.17820034,4397.8,4397.7,23.4468]
[1755352542725,2.17820034,4397.8,4397.7,2.0778]
[1755352543030,0.94190034,4397.8,4396.7,1.2704]
[1755352543225,1.20784478,4399.2,4396.3,3.66242]
[1755352543226,4.0287,4397.3,4397.2,1.3838]
[1755352543420,4.14970034,4397.3,4397.2,22.7478]
[1755352543625,5.38600034,4397.3,4397.2,22.7478]
[1755352543826,5.38600034,4397.3,4397.2,23.1778]
[1755352544222,0.4723,4396.8,4396.3,2.04168801]
[1755352544529,2.0572,4396.4,4396.3,23.4398]
[1755352544830,2.17824086,4396.4,4396.3,23.4398]
[1755352545531,0.94194086,4396.4,4396.1,0.10236229]
[1755352545723,2.0572,4396.3,4396.2,0.3218]
[1755352545924,2.0572,4396.3,4396.2,0.8404]
[1755352546124,2.0572,4396.3,4396.2,1.0513]
[1755352546832,2.0572,4396.3,4396.2,1.3838]
[1755352547225,2.0572,4396.3,4396.2,1.8138]
[1755352547427,1.7441,4396.3,4396.2,2.0778]
[1755352548325,0.3131,4396.6,4396.1,0.10236229]
[1755352548326,0.2665,4396.4,4396.3,1.6478]
[1755352548530,0.8861,4396.4,4396.3,23.4358]
[1755352548833,2.0573,4396.4,4396.3,23.4358]
[1755352549025,2.0573,4396.4,4396.3,21.358]
[1755352549220,0.8209,4396.4,4396.1,0.10236229]
[1755352549425,2.0764,4396.3,4396.2,22.4085]
[1755352549627,5.40511152,4396.3,4396.2,22.7465]
[1755352549828,5.40511152,4396.3,4396.2,23.1671]